[Event "Titled Tuesday Blitz August 1 Early 2023"]
[White "Hrescak, Ivana"]
[Black "Palczert, Matyas"]
[WhiteFideId "14613441"]
[BlackFideId "784958"]
[WhiteElo "2216"]
[BlackElo "2531"]
[Result "0-1"]
[Round "3"]
[TimeControl "180+1"]
[Date "2023.08.01"]
[WhiteClock "0:00:00"]
[BlackClock "0:00:13"]
[Board "177"]

1. e4 {[%clk 0:03:00]}  c5 {[%clk 0:02:57]} 2. Nf3 {[%clk 0:03:01]}  Nf6 {[%clk 0:02:57]} 3. e5 {[%clk 0:02:59]}  Nd5 {[%clk 0:02:56]} 4. c3 {[%clk 0:02:59]}  d6 {[%clk 0:02:55]} 5. d4 {[%clk 0:02:57]}  cxd4 {[%clk 0:02:52]} 6. cxd4 {[%clk 0:02:57]}  Nc6 {[%clk 0:02:52]} 7. Bc4 {[%clk 0:02:54]}  Nb6 {[%clk 0:02:51]} 8. Bb3 {[%clk 0:02:47]}  dxe5 {[%clk 0:02:50]} 9. dxe5 {[%clk 0:02:45]}  Qxd1+ {[%clk 0:02:49]} 10. Bxd1 {[%clk 0:02:44]}  Bd7 {[%clk 0:02:45]} 11. O-O {[%clk 0:02:42]}  g6 {[%clk 0:02:45]} 12. Nc3 {[%clk 0:02:39]}  Bg7 {[%clk 0:02:44]} 13. Re1 {[%clk 0:02:36]}  O-O {[%clk 0:02:40]} 14. h3 {[%clk 0:02:33]}  h6 {[%clk 0:02:34]} 15. Bf4 {[%clk 0:02:29]}  Be6 {[%clk 0:02:34]} 16. Nb5 {[%clk 0:02:13]}  Nd5 {[%clk 0:02:28]} 17. Bg3 {[%clk 0:02:05]}  Bd7 {[%clk 0:02:16]} 18. Bb3 {[%clk 0:01:55]}  e6 {[%clk 0:02:05]} 19. Nd6 {[%clk 0:01:43]}  Na5 {[%clk 0:02:02]} 20. Bxd5 {[%clk 0:01:35]}  exd5 {[%clk 0:02:02]} 21. b4 {[%clk 0:01:32]}  Nc4 {[%clk 0:02:01]} 22. Nxb7 {[%clk 0:01:31]}  Bf5 {[%clk 0:01:55]} 23. Nd6 {[%clk 0:01:21]}  Nxd6 {[%clk 0:01:53]} 24. exd6 {[%clk 0:01:22]}  Bxa1 {[%clk 0:01:53]} 25. Rxa1 {[%clk 0:01:23]}  Rac8 {[%clk 0:01:37]} 26. Nd4 {[%clk 0:01:03]}  Rc4 {[%clk 0:01:32]} 27. Nxf5 {[%clk 0:00:58]}  gxf5 {[%clk 0:01:31]} 28. Rd1 {[%clk 0:00:51]}  f4 {[%clk 0:00:47]} 29. Bh4 {[%clk 0:00:50]}  f6 {[%clk 0:00:47]} 30. Rxd5 {[%clk 0:00:44]}  Kf7 {[%clk 0:00:47]} 31. Ra5 {[%clk 0:00:19]}  Rd8 {[%clk 0:00:39]} 32. Rxa7+ {[%clk 0:00:19]}  Kg6 {[%clk 0:00:38]} 33. d7 {[%clk 0:00:13]}  f3 {[%clk 0:00:24]} 34. Bg3 {[%clk 0:00:12]}  Rxb4 {[%clk 0:00:21]} 35. gxf3 {[%clk 0:00:05]}  Rd4 {[%clk 0:00:21]} 36. a4 {[%clk 0:00:04]}  R8xd7 {[%clk 0:00:21]} 37. Rxd7 {[%clk 0:00:04]}  Rxd7 {[%clk 0:00:20]} 38. Bb8 {[%clk 0:00:01]}  Rb7 {[%clk 0:00:20]} 39. Bd6 {[%clk 0:00:01]}  Ra7 {[%clk 0:00:20]} 40. Bc5 {[%clk 0:00:01]}  Rxa4 {[%clk 0:00:21]} 41. Be3 {[%clk 0:00:02]}  Kh5 {[%clk 0:00:18]} 42. Kg2 {[%clk 0:00:02]}  f5 {[%clk 0:00:17]} 43. Kg3 {[%clk 0:00:02]}  Kg6 {[%clk 0:00:13]} 44. Bf4 {[%clk 0:00:01]}  h5 {[%clk 0:00:13]} 45. Be3 {[%clk 0:00:01]}  h4+ {[%clk 0:00:12]} 46. Kg2 {[%clk 0:00:00]}  Kf7 {[%clk 0:00:13]} 0-1


[Site "https://www.chess.com"]

[Event "Titled Tuesday Blitz August 1 Early 2023"]
[White "NigelDwarf"]
[Black "ChesscularGodofchess"]
[WhiteElo "2526"]
[BlackElo "2210"]
[Result "1/2-1/2"]
[Round "3"]
[TimeControl "180+1"]
[Date "2023.08.01"]
[WhiteClock "0:00:05"]
[BlackClock "0:00:15"]
[Board "178"]

1. Nf3 {[%clk 0:03:00]}  d5 {[%clk 0:02:59]} 2. c4 {[%clk 0:02:59]}  c6 {[%clk 0:02:58]} 3. e3 {[%clk 0:02:58]}  Nf6 {[%clk 0:02:56]} 4. Nc3 {[%clk 0:02:58]}  Nbd7 {[%clk 0:02:51]} 5. Qc2 {[%clk 0:02:57]}  e5 {[%clk 0:02:51]} 6. cxd5 {[%clk 0:02:55]}  Nxd5 {[%clk 0:02:47]} 7. Bc4 {[%clk 0:02:51]}  N7b6 {[%clk 0:02:23]} 8. Bxd5 {[%clk 0:02:32]}  Nxd5 {[%clk 0:02:24]} 9. Nxe5 {[%clk 0:02:30]}  Qg5 {[%clk 0:02:16]} 10. Nxd5 {[%clk 0:02:10]}  cxd5 {[%clk 0:02:13]} 11. Qa4+ {[%clk 0:01:21]}  Ke7 {[%clk 0:02:11]} 12. Qf4 {[%clk 0:00:52]}  Qxf4 {[%clk 0:02:05]} 13. exf4 {[%clk 0:00:53]}  Bf5 {[%clk 0:02:02]} 14. O-O {[%clk 0:00:52]}  f6 {[%clk 0:01:59]} 15. Nf3 {[%clk 0:00:51]}  Rc8 {[%clk 0:01:56]} 16. Nd4 {[%clk 0:00:46]}  Bd3 {[%clk 0:01:53]} 17. Re1+ {[%clk 0:00:46]}  Kf7 {[%clk 0:01:50]} 18. b3 {[%clk 0:00:46]}  Bd6 {[%clk 0:01:47]} 19. Re3 {[%clk 0:00:42]}  Bc2 {[%clk 0:01:23]} 20. g3 {[%clk 0:00:29]}  Be4 {[%clk 0:01:12]} 21. Bb2 {[%clk 0:00:28]}  Rhe8 {[%clk 0:01:06]} 22. Rae1 {[%clk 0:00:27]}  g5 {[%clk 0:01:03]} 23. fxg5 {[%clk 0:00:26]}  fxg5 {[%clk 0:01:03]} 24. f3 {[%clk 0:00:26]}  Bg6 {[%clk 0:01:01]} 25. Rxe8 {[%clk 0:00:23]}  Rxe8 {[%clk 0:01:02]} 26. Rxe8 {[%clk 0:00:22]}  Kxe8 {[%clk 0:01:03]} 27. Kf2 {[%clk 0:00:20]}  a6 {[%clk 0:01:02]} 28. Ke3 {[%clk 0:00:19]}  Kd7 {[%clk 0:01:02]} 29. Bc3 {[%clk 0:00:15]}  b5 {[%clk 0:01:01]} 30. Ne2 {[%clk 0:00:15]}  Kc6 {[%clk 0:00:56]} 31. Bf6 {[%clk 0:00:15]}  h6 {[%clk 0:00:52]} 32. h3 {[%clk 0:00:10]}  Bc5+ {[%clk 0:00:49]} 33. Bd4 {[%clk 0:00:08]}  Bf8 {[%clk 0:00:47]} 34. g4 {[%clk 0:00:08]}  b4 {[%clk 0:00:45]} 35. d3 {[%clk 0:00:07]}  a5 {[%clk 0:00:43]} 36. f4 {[%clk 0:00:07]}  Be7 {[%clk 0:00:43]} 37. f5 {[%clk 0:00:07]}  Be8 {[%clk 0:00:42]} 38. Bg7 {[%clk 0:00:07]}  h5 {[%clk 0:00:40]} 39. f6 {[%clk 0:00:07]}  Bd6 {[%clk 0:00:37]} 40. gxh5 {[%clk 0:00:06]}  Bxh5 {[%clk 0:00:38]} 41. Nd4+ {[%clk 0:00:06]}  Kd7 {[%clk 0:00:37]} 42. Nf5 {[%clk 0:00:06]}  Bf4+ {[%clk 0:00:35]} 43. Kd4 {[%clk 0:00:06]}  Ke6 {[%clk 0:00:35]} 44. Nh6 {[%clk 0:00:04]}  Be5+ {[%clk 0:00:34]} 45. Kc5 {[%clk 0:00:04]}  Bxf6 {[%clk 0:00:29]} 46. Bxf6 {[%clk 0:00:04]}  Kxf6 {[%clk 0:00:30]} 47. Kxd5 {[%clk 0:00:05]}  Bg6 {[%clk 0:00:25]} 48. Ng4+ {[%clk 0:00:05]}  Ke7 {[%clk 0:00:24]} 49. Kc4 {[%clk 0:00:04]}  Kd6 {[%clk 0:00:21]} 50. d4 {[%clk 0:00:04]}  Bb1 {[%clk 0:00:20]} 51. Kb5 {[%clk 0:00:02]}  Bxa2 {[%clk 0:00:20]} 52. Kxa5 {[%clk 0:00:03]}  Bxb3 {[%clk 0:00:20]} 53. Kxb4 {[%clk 0:00:03]}  Be6 {[%clk 0:00:21]} 54. Kc3 {[%clk 0:00:04]}  Bf5 {[%clk 0:00:21]} 55. Kc4 {[%clk 0:00:04]}  Be4 {[%clk 0:00:19]} 56. Nf6 {[%clk 0:00:03]}  Bf3 {[%clk 0:00:20]} 57. d5 {[%clk 0:00:03]}  Bg2 {[%clk 0:00:20]} 58. Kd4 {[%clk 0:00:03]}  Bxh3 {[%clk 0:00:20]} 59. Ne4+ {[%clk 0:00:04]}  Ke7 {[%clk 0:00:19]} 60. Nxg5 {[%clk 0:00:05]}  Bg4 {[%clk 0:00:18]} 61. Ke5 {[%clk 0:00:05]}  Kd7 {[%clk 0:00:18]} 62. d6 {[%clk 0:00:05]}  Bh5 {[%clk 0:00:18]} 63. Ne4 {[%clk 0:00:06]}  Bf7 {[%clk 0:00:17]} 64. Nf6+ {[%clk 0:00:06]}  Kd8 {[%clk 0:00:17]} 65. d7 {[%clk 0:00:05]}  Bb3 {[%clk 0:00:15]} 66. Kd6 {[%clk 0:00:06]}  Ba4 {[%clk 0:00:15]} 67. Ke6 {[%clk 0:00:05]}  Bxd7+ {[%clk 0:00:15]} 1/2-1/2


[Site "https://www.chess.com"]

[Event "Titled Tuesday Blitz August 1 Early 2023"]
[White "Feliz Dotel, Dewar Bienvenido"]
[Black "Gontcharov, Vladislav"]
[WhiteFideId "6402801"]
[BlackFideId "4123492"]
[WhiteElo "2126"]
[BlackElo "2519"]
[Result "0-1"]
[Round "3"]
[TimeControl "180+1"]
[Date "2023.08.01"]
[WhiteClock "0:00:00"]
[BlackClock "0:00:19"]
[Board "182"]

1. d4 {[%clk 0:03:00]}  Nf6 {[%clk 0:02:55]} 2. e3 {[%clk 0:02:59]}  g6 {[%clk 0:02:55]} 3. Nf3 {[%clk 0:02:59]}  Bg7 {[%clk 0:02:55]} 4. Be2 {[%clk 0:02:59]}  O-O {[%clk 0:02:54]} 5. b4 {[%clk 0:02:58]}  a5 {[%clk 0:02:50]} 6. b5 {[%clk 0:02:58]}  d6 {[%clk 0:02:48]} 7. O-O {[%clk 0:02:56]}  Nbd7 {[%clk 0:02:44]} 8. Bb2 {[%clk 0:02:56]}  b6 {[%clk 0:02:43]} 9. c4 {[%clk 0:02:53]}  Bb7 {[%clk 0:02:42]} 10. a4 {[%clk 0:02:53]}  e6 {[%clk 0:02:38]} 11. Nbd2 {[%clk 0:02:52]}  Qe7 {[%clk 0:02:37]} 12. Rc1 {[%clk 0:02:51]}  Rfe8 {[%clk 0:02:36]} 13. Qc2 {[%clk 0:02:40]}  h6 {[%clk 0:02:26]} 14. Nb3 {[%clk 0:02:34]}  Ne4 {[%clk 0:02:19]} 15. Nbd2 {[%clk 0:02:18]}  f5 {[%clk 0:02:09]} 16. Nxe4 {[%clk 0:02:10]}  Bxe4 {[%clk 0:02:08]} 17. Qd1 {[%clk 0:02:05]}  e5 {[%clk 0:02:03]} 18. dxe5 {[%clk 0:01:54]}  Nxe5 {[%clk 0:01:33]} 19. Nxe5 {[%clk 0:01:50]}  Bxe5 {[%clk 0:01:32]} 20. Bxe5 {[%clk 0:01:46]}  Qxe5 {[%clk 0:01:32]} 21. Bf3 {[%clk 0:01:45]}  Kg7 {[%clk 0:01:26]} 22. Bxe4 {[%clk 0:01:40]}  Qxe4 {[%clk 0:01:25]} 23. Re1 {[%clk 0:01:37]}  Re5 {[%clk 0:01:24]} 24. Qd4 {[%clk 0:01:33]}  Re8 {[%clk 0:01:23]} 25. Qxe4 {[%clk 0:01:32]}  Rxe4 {[%clk 0:01:23]} 26. g3 {[%clk 0:01:28]}  g5 {[%clk 0:01:22]} 27. Red1 {[%clk 0:01:25]}  f4 {[%clk 0:01:18]} 28. exf4 {[%clk 0:01:24]}  gxf4 {[%clk 0:01:17]} 29. Kg2 {[%clk 0:01:20]}  fxg3 {[%clk 0:01:04]} 30. hxg3 {[%clk 0:01:21]}  Re2 {[%clk 0:01:04]} 31. Rd4 {[%clk 0:01:04]}  Rf8 {[%clk 0:00:59]} 32. Rg4+ {[%clk 0:01:02]}  Kh7 {[%clk 0:00:58]} 33. Rf1 {[%clk 0:01:01]}  Ra2 {[%clk 0:00:56]} 34. Re4 {[%clk 0:00:45]}  Rf7 {[%clk 0:00:55]} 35. g4 {[%clk 0:00:35]}  Rxa4 {[%clk 0:00:53]} 36. f3 {[%clk 0:00:33]}  d5 {[%clk 0:00:38]} 37. Rd4 {[%clk 0:00:13]}  dxc4 {[%clk 0:00:37]} 38. Rc1 {[%clk 0:00:13]}  Ra2+ {[%clk 0:00:34]} 39. Kg3 {[%clk 0:00:12]}  Ra3 {[%clk 0:00:33]} 40. Rf1 {[%clk 0:00:11]}  c3 {[%clk 0:00:32]} 41. Rc4 {[%clk 0:00:12]}  Rb3 {[%clk 0:00:32]} 42. Rf2 {[%clk 0:00:11]}  Rxb5 {[%clk 0:00:32]} 43. Rxc3 {[%clk 0:00:10]}  c5 {[%clk 0:00:32]} 44. Rd3 {[%clk 0:00:09]}  a4 {[%clk 0:00:32]} 45. Rd6 {[%clk 0:00:09]}  Rb3 {[%clk 0:00:31]} 46. g5 {[%clk 0:00:06]}  hxg5 {[%clk 0:00:31]} 47. Kg4 {[%clk 0:00:06]}  a3 {[%clk 0:00:30]} 48. Rh2+ {[%clk 0:00:06]}  Kg7 {[%clk 0:00:29]} 49. Kxg5 {[%clk 0:00:04]}  Rbxf3 {[%clk 0:00:19]} 50. Re2 {[%clk 0:00:03]}  R3f5+ {[%clk 0:00:18]} 51. Kg4 {[%clk 0:00:00]}  R5f6 {[%clk 0:00:19]} 0-1


[Site "https://www.chess.com"]

[Event "Titled Tuesday Blitz August 1 Early 2023"]
[White "Keleberda, Tymur"]
[Black "Lohani, Sujana"]
[WhiteFideId "14174294"]
[BlackFideId "12311987"]
[WhiteElo "2517"]
[BlackElo "1948"]
[Result "1-0"]
[Round "3"]
[TimeControl "180+1"]
[Date "2023.08.01"]
[WhiteClock "0:01:37"]
[BlackClock "0:00:00"]
[Board "185"]

1. d4 {[%clk 0:03:00]}  Nf6 {[%clk 0:02:57]} 2. c4 {[%clk 0:02:58]}  d6 {[%clk 0:02:55]} 3. Nf3 {[%clk 0:02:57]}  g6 {[%clk 0:02:55]} 4. g3 {[%clk 0:02:57]}  Bg7 {[%clk 0:02:55]} 5. Bg2 {[%clk 0:02:57]}  O-O {[%clk 0:02:56]} 6. Nc3 {[%clk 0:02:57]}  Nc6 {[%clk 0:02:54]} 7. O-O {[%clk 0:02:57]}  e5 {[%clk 0:02:54]} 8. e4 {[%clk 0:02:57]}  exd4 {[%clk 0:02:43]} 9. Nxd4 {[%clk 0:02:57]}  Ne5 {[%clk 0:02:36]} 10. b3 {[%clk 0:02:53]}  h5 {[%clk 0:02:25]} 11. h3 {[%clk 0:02:53]}  Bd7 {[%clk 0:02:22]} 12. Bg5 {[%clk 0:02:52]}  Qc8 {[%clk 0:02:21]} 13. Kh2 {[%clk 0:02:52]}  Nh7 {[%clk 0:02:15]} 14. Be3 {[%clk 0:02:51]}  g5 {[%clk 0:02:12]} 15. f4 {[%clk 0:02:50]}  gxf4 {[%clk 0:02:07]} 16. gxf4 {[%clk 0:02:51]}  Ng6 {[%clk 0:01:59]} 17. Qxh5 {[%clk 0:02:49]}  Nf6 {[%clk 0:01:50]} 18. Qg5 {[%clk 0:02:49]}  Nh7 {[%clk 0:01:44]} 19. Qg3 {[%clk 0:02:49]}  Kh8 {[%clk 0:01:42]} 20. Rad1 {[%clk 0:02:45]}  Rg8 {[%clk 0:01:41]} 21. Nd5 {[%clk 0:02:43]}  c6 {[%clk 0:01:39]} 22. Ne7 {[%clk 0:02:43]}  Nxe7 {[%clk 0:01:38]} 23. Qf2 {[%clk 0:02:41]}  Ng6 {[%clk 0:01:21]} 24. Ne2 {[%clk 0:02:41]}  Qc7 {[%clk 0:01:12]} 25. Rd2 {[%clk 0:02:39]}  Rae8 {[%clk 0:01:11]} 26. Rfd1 {[%clk 0:02:38]}  d5 {[%clk 0:01:10]} 27. e5 {[%clk 0:02:38]}  Bf5 {[%clk 0:01:07]} 28. Ng3 {[%clk 0:02:37]}  Nh4 {[%clk 0:00:56]} 29. cxd5 {[%clk 0:02:34]}  cxd5 {[%clk 0:00:56]} 30. Bxd5 {[%clk 0:02:33]}  Qa5 {[%clk 0:00:43]} 31. Bxa7 {[%clk 0:02:32]}  Bg6 {[%clk 0:00:36]} 32. Bb6 {[%clk 0:02:25]}  Qb5 {[%clk 0:00:32]} 33. a4 {[%clk 0:02:23]}  Qd7 {[%clk 0:00:27]} 34. Bc4 {[%clk 0:02:10]}  Qc8 {[%clk 0:00:25]} 35. Bb5 {[%clk 0:02:10]}  Re6 {[%clk 0:00:22]} 36. Bd7 {[%clk 0:02:09]}  Qc3 {[%clk 0:00:17]} 37. Bxe6 {[%clk 0:02:09]}  Nf3+ {[%clk 0:00:16]} 38. Kg2 {[%clk 0:02:10]}  Nxd2 {[%clk 0:00:14]} 39. Qxd2 {[%clk 0:02:09]}  Qxd2+ {[%clk 0:00:14]} 40. Rxd2 {[%clk 0:02:10]}  fxe6 {[%clk 0:00:14]} 41. Rd7 {[%clk 0:02:09]}  Bc2 {[%clk 0:00:11]} 42. a5 {[%clk 0:01:54]}  Bxb3 {[%clk 0:00:10]} 43. Kf2 {[%clk 0:01:55]}  Bh6 {[%clk 0:00:09]} 44. Nh5 {[%clk 0:01:50]}  Nf8 {[%clk 0:00:05]} 45. Rxb7 {[%clk 0:01:48]}  Bd5 {[%clk 0:00:04]} 46. Rf7 {[%clk 0:01:48]}  Ng6 {[%clk 0:00:03]} 47. Nf6 {[%clk 0:01:47]}  Rg7 {[%clk 0:00:02]} 48. Rxg7 {[%clk 0:01:42]}  Kxg7 {[%clk 0:00:03]} 49. Nxd5 {[%clk 0:01:38]}  exd5 {[%clk 0:00:03]} 50. a6 {[%clk 0:01:37]}  Ne7 {[%clk 0:00:03]} 51. a7 {[%clk 0:01:37]}  Nc6 {[%clk 0:00:03]} 52. a8=Q {[%clk 0:01:37]}  Bxf4 {[%clk 0:00:02]} 53. Qxc6 {[%clk 0:01:37]}  Bxe5 {[%clk 0:00:00]} 54. Qxd5 {[%clk 0:01:37]} 1-0


[Site "https://www.chess.com"]

[Event "Titled Tuesday Blitz August 1 Early 2023"]
[White "Sosa, Tomas"]
[Black "Amanov, Zhanibek"]
[WhiteFideId "121576"]
[BlackFideId "13700189"]
[WhiteElo "2819"]
[BlackElo "2388"]
[Result "1-0"]
[Round "3"]
[TimeControl "180+1"]
[Date "2023.08.01"]
[WhiteClock "0:00:42"]
[BlackClock "0:00:02"]
[Board "187"]

1. d4 {[%clk 0:03:00]}  d5 {[%clk 0:02:58]} 2. c4 {[%clk 0:03:01]}  c6 {[%clk 0:02:58]} 3. Nf3 {[%clk 0:03:00]}  Nf6 {[%clk 0:02:58]} 4. Qc2 {[%clk 0:03:00]}  dxc4 {[%clk 0:02:55]} 5. Qxc4 {[%clk 0:02:59]}  Bf5 {[%clk 0:02:55]} 6. Nc3 {[%clk 0:02:58]}  e6 {[%clk 0:02:55]} 7. g3 {[%clk 0:02:57]}  Nbd7 {[%clk 0:02:52]} 8. Bg2 {[%clk 0:02:56]}  Nb6 {[%clk 0:02:52]} 9. Qb3 {[%clk 0:02:56]}  Be7 {[%clk 0:02:47]} 10. O-O {[%clk 0:02:56]}  h6 {[%clk 0:02:41]} 11. Rd1 {[%clk 0:02:53]}  O-O {[%clk 0:02:39]} 12. Ne5 {[%clk 0:02:54]}  Nfd5 {[%clk 0:02:37]} 13. e4 {[%clk 0:02:47]}  Nxc3 {[%clk 0:02:35]} 14. bxc3 {[%clk 0:02:48]}  Bh7 {[%clk 0:02:35]} 15. a4 {[%clk 0:02:48]}  Qc7 {[%clk 0:02:33]} 16. Bf4 {[%clk 0:02:47]}  g5 {[%clk 0:02:30]} 17. Be3 {[%clk 0:02:45]}  Nd7 {[%clk 0:02:27]} 18. f4 {[%clk 0:02:41]}  Nxe5 {[%clk 0:02:25]} 19. dxe5 {[%clk 0:02:38]}  gxf4 {[%clk 0:02:20]} 20. gxf4 {[%clk 0:02:38]}  Kh8 {[%clk 0:02:18]} 21. Kh1 {[%clk 0:02:35]}  Rg8 {[%clk 0:02:18]} 22. Bf3 {[%clk 0:02:36]}  c5 {[%clk 0:02:08]} 23. Qc4 {[%clk 0:02:33]}  a6 {[%clk 0:01:52]} 24. Rab1 {[%clk 0:02:24]}  b6 {[%clk 0:01:48]} 25. Rb2 {[%clk 0:02:16]}  Qc6 {[%clk 0:01:44]} 26. Rf1 {[%clk 0:01:51]}  Rab8 {[%clk 0:01:33]} 27. f5 {[%clk 0:01:44]}  Bg5 {[%clk 0:01:09]} 28. Bd4 {[%clk 0:01:16]}  Rbc8 {[%clk 0:00:46]} 29. Bg1 {[%clk 0:01:07]}  Bf4 {[%clk 0:00:38]} 30. Qxa6 {[%clk 0:01:04]}  exf5 {[%clk 0:00:20]} 31. Rxb6 {[%clk 0:00:42]}  Qd7 {[%clk 0:00:17]} 32. Rb7 {[%clk 0:00:43]}  Qd3 {[%clk 0:00:02]} 33. Qxd3 {[%clk 0:00:42]} 1-0


[Site "https://www.chess.com"]

[Event "Titled Tuesday Blitz August 1 Early 2023"]
[White "Slavin, Alexey"]
[Black "Necromon"]
[WhiteFideId "24104388"]
[WhiteElo "2353"]
[BlackElo "2460"]
[Result "1-0"]
[Round "3"]
[TimeControl "180+1"]
[Date "2023.08.01"]
[WhiteClock "0:00:10"]
[BlackClock "0:00:00"]
[Board "190"]

1. e4 {[%clk 0:02:59]}  c5 {[%clk 0:02:59]} 2. g3 {[%clk 0:02:58]}  Nc6 {[%clk 0:02:58]} 3. Bg2 {[%clk 0:02:59]}  g6 {[%clk 0:02:58]} 4. Ne2 {[%clk 0:02:59]}  Bg7 {[%clk 0:02:59]} 5. O-O {[%clk 0:03:00]}  d6 {[%clk 0:02:58]} 6. Nbc3 {[%clk 0:02:59]}  e6 {[%clk 0:02:58]} 7. a3 {[%clk 0:02:59]}  Nge7 {[%clk 0:02:58]} 8. Rb1 {[%clk 0:02:59]}  O-O {[%clk 0:02:55]} 9. b4 {[%clk 0:02:59]}  cxb4 {[%clk 0:02:53]} 10. axb4 {[%clk 0:02:58]}  a6 {[%clk 0:02:35]} 11. b5 {[%clk 0:02:57]}  axb5 {[%clk 0:02:35]} 12. Nxb5 {[%clk 0:02:58]}  d5 {[%clk 0:02:33]} 13. exd5 {[%clk 0:02:52]}  Nxd5 {[%clk 0:02:34]} 14. d4 {[%clk 0:02:35]}  Qe7 {[%clk 0:01:52]} 15. c4 {[%clk 0:02:28]}  Nc7 {[%clk 0:01:41]} 16. Nxc7 {[%clk 0:02:17]}  Qxc7 {[%clk 0:01:41]} 17. Bf4 {[%clk 0:02:16]}  e5 {[%clk 0:01:25]} 18. dxe5 {[%clk 0:02:11]}  Nxe5 {[%clk 0:01:25]} 19. Rb5 {[%clk 0:01:50]}  Re8 {[%clk 0:00:37]} 20. Bd5 {[%clk 0:01:31]}  Ra5 {[%clk 0:00:33]} 21. Nd4 {[%clk 0:01:18]}  Rxb5 {[%clk 0:00:28]} 22. Nxb5 {[%clk 0:01:17]}  Qc5 {[%clk 0:00:28]} 23. Re1 {[%clk 0:01:13]}  h5 {[%clk 0:00:19]} 24. Kg2 {[%clk 0:00:32]}  Bg4 {[%clk 0:00:16]} 25. Qa1 {[%clk 0:00:30]}  h4 {[%clk 0:00:14]} 26. Bxe5 {[%clk 0:00:28]}  h3+ {[%clk 0:00:07]} 27. Kg1 {[%clk 0:00:27]}  Qe7 {[%clk 0:00:05]} 28. f4 {[%clk 0:00:21]}  Bxe5 {[%clk 0:00:04]} 29. Rxe5 {[%clk 0:00:19]}  Qd7 {[%clk 0:00:02]} 30. Qd4 {[%clk 0:00:18]}  Rxe5 {[%clk 0:00:02]} 31. Qxe5 {[%clk 0:00:16]}  Qd8 {[%clk 0:00:01]} 32. Qg5 {[%clk 0:00:12]}  Qb6+ {[%clk 0:00:01]} 33. Kf1 {[%clk 0:00:11]}  Qe3 {[%clk 0:00:00]} 34. Qxg6+ {[%clk 0:00:10]} 1-0


[Site "https://www.chess.com"]

[Event "Titled Tuesday Blitz August 1 Early 2023"]
[White "Schut, Han"]
[Black "Bochnicka, Vladimir"]
[WhiteFideId "1005561"]
[BlackFideId "14943450"]
[WhiteElo "2272"]
[BlackElo "2452"]
[Result "0-1"]
[Round "3"]
[TimeControl "180+1"]
[Date "2023.08.01"]
[WhiteClock "0:00:08"]
[BlackClock "0:00:12"]
[Board "193"]

1. e4 {[%clk 0:03:00]}  e5 {[%clk 0:02:57]} 2. Nf3 {[%clk 0:03:01]}  Nc6 {[%clk 0:02:54]} 3. Bc4 {[%clk 0:03:01]}  Nf6 {[%clk 0:02:49]} 4. d4 {[%clk 0:03:01]}  Nxe4 {[%clk 0:02:27]} 5. dxe5 {[%clk 0:02:58]}  Nc5 {[%clk 0:01:58]} 6. Nc3 {[%clk 0:02:49]}  Be7 {[%clk 0:01:57]} 7. O-O {[%clk 0:02:30]}  O-O {[%clk 0:01:57]} 8. Qe2 {[%clk 0:02:31]}  d6 {[%clk 0:01:54]} 9. Rd1 {[%clk 0:02:31]}  Re8 {[%clk 0:01:54]} 10. h3 {[%clk 0:02:08]}  Bf8 {[%clk 0:01:54]} 11. Bf4 {[%clk 0:02:08]}  Be6 {[%clk 0:01:44]} 12. exd6 {[%clk 0:01:45]}  cxd6 {[%clk 0:01:13]} 13. Qf1 {[%clk 0:01:28]}  Qf6 {[%clk 0:01:11]} 14. Bg5 {[%clk 0:01:04]}  Qg6 {[%clk 0:01:01]} 15. b4 {[%clk 0:01:02]}  Nxb4 {[%clk 0:00:46]} 16. Nd5 {[%clk 0:00:24]}  Bxd5 {[%clk 0:00:32]} 17. Bxd5 {[%clk 0:00:25]}  Nxd5 {[%clk 0:00:26]} 18. Rxd5 {[%clk 0:00:26]}  Qxc2 {[%clk 0:00:21]} 19. a4 {[%clk 0:00:21]}  Ne4 {[%clk 0:00:18]} 20. Be3 {[%clk 0:00:18]}  Rac8 {[%clk 0:00:16]} 21. Kh1 {[%clk 0:00:15]}  Nc3 {[%clk 0:00:16]} 22. Rd2 {[%clk 0:00:15]}  Qb3 {[%clk 0:00:16]} 23. Re1 {[%clk 0:00:12]}  Qxa4 {[%clk 0:00:15]} 24. Nd4 {[%clk 0:00:13]}  Ne4 {[%clk 0:00:13]} 25. Rde2 {[%clk 0:00:12]}  d5 {[%clk 0:00:13]} 26. Nf5 {[%clk 0:00:11]}  g6 {[%clk 0:00:12]} 27. Bd4 {[%clk 0:00:11]}  gxf5 {[%clk 0:00:12]} 28. Re3 {[%clk 0:00:10]}  Qxd4 {[%clk 0:00:11]} 29. Rg3+ {[%clk 0:00:10]}  Nxg3+ {[%clk 0:00:12]} 30. fxg3 {[%clk 0:00:10]}  Rxe1 {[%clk 0:00:11]} 31. Qxe1 {[%clk 0:00:08]}  Qe4 {[%clk 0:00:12]} 0-1


[Site "https://www.chess.com"]

[Event "Titled Tuesday Blitz August 1 Early 2023"]
[White "KrokerGuy"]
[Black "hsd2016"]
[WhiteElo "2450"]
[BlackElo "2231"]
[Result "1-0"]
[Round "3"]
[TimeControl "180+1"]
[Date "2023.08.01"]
[WhiteClock "0:00:04"]
[BlackClock "0:00:02"]
[Board "195"]

1. e4 {[%clk 0:03:00]}  e5 {[%clk 0:02:55]} 2. Nf3 {[%clk 0:03:01]}  Nc6 {[%clk 0:02:55]} 3. Bb5 {[%clk 0:03:01]}  a6 {[%clk 0:02:55]} 4. Ba4 {[%clk 0:03:02]}  Nf6 {[%clk 0:02:55]} 5. O-O {[%clk 0:03:00]}  Be7 {[%clk 0:02:52]} 6. d3 {[%clk 0:02:57]}  b5 {[%clk 0:02:52]} 7. Bb3 {[%clk 0:02:57]}  O-O {[%clk 0:02:52]} 8. c3 {[%clk 0:02:57]}  d5 {[%clk 0:02:44]} 9. Qe2 {[%clk 0:02:48]}  Bg4 {[%clk 0:01:47]} 10. Nbd2 {[%clk 0:02:38]}  d4 {[%clk 0:01:34]} 11. h3 {[%clk 0:02:32]}  Bh5 {[%clk 0:01:28]} 12. g4 {[%clk 0:02:00]}  Bg6 {[%clk 0:01:26]} 13. cxd4 {[%clk 0:01:36]}  Nxd4 {[%clk 0:01:18]} 14. Nxd4 {[%clk 0:01:36]}  Qxd4 {[%clk 0:01:18]} 15. Nf3 {[%clk 0:01:34]}  Qd6 {[%clk 0:01:17]} 16. Nxe5 {[%clk 0:01:29]}  Qxe5 {[%clk 0:01:11]} 17. f4 {[%clk 0:01:30]}  Qd6 {[%clk 0:00:28]} 18. e5 {[%clk 0:01:30]}  Qb6+ {[%clk 0:00:27]} 19. Kh2 {[%clk 0:00:26]}  Rad8 {[%clk 0:00:14]} 20. f5 {[%clk 0:00:19]}  Kh8 {[%clk 0:00:14]} 21. exf6 {[%clk 0:00:18]}  Bxf6 {[%clk 0:00:14]} 22. fxg6 {[%clk 0:00:18]}  hxg6 {[%clk 0:00:14]} 23. Bf4 {[%clk 0:00:15]}  g5 {[%clk 0:00:11]} 24. Bg3 {[%clk 0:00:10]}  c5 {[%clk 0:00:11]} 25. Rac1 {[%clk 0:00:06]}  Rfe8 {[%clk 0:00:12]} 26. Qc2 {[%clk 0:00:06]}  Qb7 {[%clk 0:00:12]} 27. Qxc5 {[%clk 0:00:04]}  Rxd3 {[%clk 0:00:12]} 28. Qf5 {[%clk 0:00:03]}  Re2+ {[%clk 0:00:12]} 29. Rf2 {[%clk 0:00:04]}  Rdd2 {[%clk 0:00:02]} 30. Rc8+ {[%clk 0:00:04]} 1-0


[Site "https://www.chess.com"]